Workbook

Sheet Interest Rate
E2: Zero Coupon Bonds ($1 Maturity)
B3: Inputs | F3: Vasicek | G3: CIR
B4: Vasicek (a(b-r)dt + s dz) | E4: Bond Price | F4: =vasicek(C5,C6,C7,C8,C17,C18) -> 53.87033506 | G4: =cir(C11,C12,C13,C14,C17,C18) -> 0.5537392474
B5: a | C5: 0.2 | E5: Long-Term Yield | F5: -0.37 | G5: 0.02478178053
B6: b | C6: 0.08 | E6: Interest Rate Delta | F6: -2.644183273 | G6: -0.00857665281
B7: Risk Premium | C7: 0.05 | E7: Interest Rate Gamma | F7: 12.97876683 | G7: 0.01328404547
B8: Volatility | C8: 0.2 | E8: Yield to Maturity | F8: =-LN(F4)/C18 -> -0.1993289978 | G8: =-LN(G4)/C18 -> 0.02955306878
B10: CIR (a(b-r)dt + s r^.5 dz)
B11: a | C11: 0.2 | H11: =EXP(-1) -> 0.3678794412
B12: b | C12: 0.08 | G12: =EXP(-0.25) -> 0.7788007831
B13: Risk Premium | C13: 0.05 | F13: =EXP(-0.2) -> 0.8187307531
B14: Volatility | C14: 0.8 | F14: =EXP(-0.1) -> 0.904837418
F15: =EXP(0) -> 1
B16: Other | F16: =EXP(0.1) -> 1.105170918
B17: Current Interest Rate | C17: 0.08 | G17: =EXP(0.15) -> 1.161834243
B18: Time to Maturity (years) | C18: 20 | H18: =EXP(1) -> 2.718281828
E19: =EXP(-0.18) -> 0.8352702114

Sheet Perpetual
B3: Inputs | E3: Perpetual Options
B4: Stock Price | C4: 40 | F4: Call | G4: Put
B5: Exercise Price | C5: 40 | E5: Option Price | F5: =CallPerpetual($C$4,$C$5,$C$6,$C$7,$C$8) -> 15.22257927 | G5: =PutPerpetual($C$4,$C$5,$C$6,$C$7,$C$8) -> 8.909116026
B6: Volatility | C6: 0.3 | E6: Exercise at: | F6: 118.3735465 | G6: 21.62645351
B7: Risk-free interest rate | C7: 0.08
B8: Dividend Yield | C8: 0.05

Sheet Asian
B2: Inputs | E2: Geometric Average Price Asian Options
B3: Stock Price | C3: 100 | F3: Call | G3: Put
B4: Exercise Price | C4: 100 | E4: Black-Scholes | F4: =BSCall($C$3,$C$4,$C$5,$C$6,$C$7,$C$8) -> 42.01133415 | G4: =BSPut($C$3,$C$4,$C$5,$C$6,$C$7,$C$8) -> 9.043338758
B5: Volatility | C5: 0.3 | E5: Average Price, Continuous | F5: =GeomAvgPriceCall($C$3,$C$4,$C$5,$C$6,$C$7,$C$8) -> 18.07161042 | G5: =GeomAvgPricePut($C$3,$C$4,$C$5,$C$6,$C$7,$C$8) -> 6.243925926
B6: Risk-free interest rate | C6: 0.08 | E6: =CONCATENATE("Average Price, ",TEXT($C$9,"0")," Prices") -> Average Price, 20 Prices | F6: =GeomAvgPriceCall($C$3,$C$4,$C$5,$C$6,$C$7,$C$8,$C$9) -> 19.03574592 | G6: =GeomAvgPricePut($C$3,$C$4,$C$5,$C$6,$C$7,$C$8,$C$9) -> 6.408040625
B7: Time to Expiration (years) | C7: 5 | E7: Average Strike, Continuous | F7: =GeomAvgStrikeCall($C$3,$C$10,$C$5,$C$6,$C$7,$C$8) -> 26.76043734 | G7: =GeomAvgStrikePut($C$3,$C$10,$C$5,$C$6,$C$7,$C$8) -> 5.620126442
B8: Dividend Yield | C8: 0 | E8: =CONCATENATE("Average Strike, ",TEXT($C$9,"0")," Prices") -> Average Strike, 20 Prices | F8: =GeomAvgStrikeCall($C$3,$C$10,$C$5,$C$6,$C$7,$C$8,$C$9) -> 25.80865029 | G8: =GeomAvgStrikePut($C$3,$C$10,$C$5,$C$6,$C$7,$C$8,$C$9) -> 5.468360183
B9: # Prices in Average | C9: 20
B10: Moneyness for Avg Strike | C10: 1 | D10: 5 | E10: Arithmetic Avg Asian (simple Monte Carlo)
B11: Number of simulations | C11: 1000 | E11: Arithmetic Average Price | F11: 22.26635551 | G11: 5.636363579
E12: Arithmetic Average Strike | F12: 23.93642583 | G12: 6.118053664
E13: Iteration Number | F13: 5000
E15: Arithmetic Avg Asian (Control Variate)
E16: Arithmetic Average Price | F16: 21.88535098 | G16: 5.77890315
E17: Arithmetic Average Strike | F17: 23.14596674 | G17: 6.324216333
E18: Iteration Number | F18: 5000

Sheet Power
B2: Inputs | E2: Power Options
B3: Stock Price | C3: 40 | F3: Call | G3: Put
B4: Exercise Price | C4: 40 | E4: Price | F4: =bscallpower($C$3,$C$4,$C$5,$C$6,$C$7,$C$8,$C$9) -> 2.784736658 | G4: =bsputpower($C$3,$C$4,$C$5,$C$6,$C$7,$C$8,$C$9) -> 1.99268359
B5: Volatility | C5: 0.3
B6: Risk-free interest rate | C6: 0.08
B7: Time to Expiration (years) | C7: 0.25
B8: Dividend Yield | C8: 0
B9: Power | C9: 1

Sheet Binaries
F2: Binary Options
B3: Inputs | F3: Call | G3: Put
B4: Stock Price | C4: 11.52 | E4: Black-Scholes | F4: =BSCall($C$4,$C$5,$C$6,$C$7,$C$8,$C$9) -> 4.263071225 | G4: =BSPut($C$4,$C$5,$C$6,$C$7,$C$8,$C$9) -> 0.07941694151
B5: Exercise Price | C5: 7.79 | E5: Cash Binary | F5: =CashCall($C$4,$C$5,$C$6,$C$7,$C$8,$C$9) -> 0.8590353186 | G5: =CashPut($C$4,$C$5,$C$6,$C$7,$C$8,$C$9) -> 0.08272921499
B6: Volatility | C6: 0.3 | E6: Asset Binary | F6: =AssetCall($C$4,$C$5,$C$6,$C$7,$C$8,$C$9) -> 10.95495636 | G6: =AssetPut($C$4,$C$5,$C$6,$C$7,$C$8,$C$9) -> 0.5650436432
B7: Risk-free interest rate | C7: 0.06 | E7: Up and In Cash | F7: =CashUICall($C$4,$C$5,$C$6,$C$7,$C$8,$C$9,$C$10) -> 0.0002400668719 | G7: =CashUIPut($C$4,$C$5,$C$6,$C$7,$C$8,$C$9,$C$10) -> -1.387778781e-17
B8: Time to Expiration (years) | C8: 1 | E8: Up and Out Cash | F8: =CashUOCall($C$4,$C$5,$C$6,$C$7,$C$8,$C$9,$C$10) -> 0.8587952517 | G8: =CashUOPut($C$4,$C$5,$C$6,$C$7,$C$8,$C$9,$C$10) -> 0.08272921499
B9: Dividend Yield | C9: 0 | E9: Up and In Asset | F9: =AssetUICall($C$4,$C$5,$C$6,$C$7,$C$8,$C$9,$C$10) -> 0.008458169302 | G9: =AssetUIPut($C$4,$C$5,$C$6,$C$7,$C$8,$C$9,$C$10) -> -2.220446049e-16
B10: Barrier | C10: 35 | E10: Up and Out Asset | F10: =AssetUOCall($C$4,$C$5,$C$6,$C$7,$C$8,$C$9,$C$10) -> 10.94649819 | G10: =AssetUOPut($C$4,$C$5,$C$6,$C$7,$C$8,$C$9,$C$10) -> 0.5650436432
E11: Down and In Cash | F11: =CashDICall($C$4,$C$5,$C$6,$C$7,$C$8,$C$9,$C$10) -> 0.8590353186 | G11: =CashDIPut($C$4,$C$5,$C$6,$C$7,$C$8,$C$9,$C$10) -> 0.08272921499
E12: Down and Out Cash | F12: =CashDOCall($C$4,$C$5,$C$6,$C$7,$C$8,$C$9,$C$10) -> 0 | G12: =CashDOPut($C$4,$C$5,$C$6,$C$7,$C$8,$C$9,$C$10) -> 0
E13: Down and In Asset | F13: =AssetDICall($C$4,$C$5,$C$6,$C$7,$C$8,$C$9,$C$10) -> 10.95495636 | G13: =AssetDIPut($C$4,$C$5,$C$6,$C$7,$C$8,$C$9,$C$10) -> 0.5650436432
E14: Down and Out Asset | F14: =AssetDOCall($C$4,$C$5,$C$6,$C$7,$C$8,$C$9,$C$10) -> 0 | G14: =AssetDOPut($C$4,$C$5,$C$6,$C$7,$C$8,$C$9,$C$10) -> 0

Sheet Barriers
F2: Barrier Options
B3: Inputs | F3: Call | G3: Put
B4: Stock Price | C4: 1.071 | E4: Black-Scholes | F4: =BSCall($C$4,$C$5,$C$6,$C$7,$C$8,$C$9) -> 0.08622888651 | G4: =BSPut($C$4,$C$5,$C$6,$C$7,$C$8,$C$9) -> 0.02234882042
B5: Exercise Price | C5: 1.091 | E5: Up & In | F5: =CallUpIn($C$4,$C$5,$C$6,$C$7,$C$8,$C$9,$C$10) -> 1.566918312e-221 | G5: =PutUpIn($C$4,$C$5,$C$6,$C$7,$C$8,$C$9,$C$10) -> -6.056266599e-17
B6: Volatility | C6: 0.115 | E6: Up & Out | F6: =CallUpOut($C$4,$C$5,$C$6,$C$7,$C$8,$C$9,$C$10) -> 0.08622888651 | G6: =PutUpOut($C$4,$C$5,$C$6,$C$7,$C$8,$C$9,$C$10) -> 0.02234882042
B7: Risk-free interest rate | C7: 0.08 | E7: Down & In | F7: =CallDownIn($C$4,$C$5,$C$6,$C$7,$C$8,$C$9,$C$10) -> 0.08622888651 | G7: =PutDownIn($C$4,$C$5,$C$6,$C$7,$C$8,$C$9,$C$10) -> 0.02234882042
B8: Time to Expiration (years) | C8: 1 | E8: Down & Out | F8: =CallDownOut($C$4,$C$5,$C$6,$C$7,$C$8,$C$9,$C$10) -> 0 | G8: =PutDownOut($C$4,$C$5,$C$6,$C$7,$C$8,$C$9,$C$10) -> 5.551115123e-17
B9: Dividend Yield | C9: 0 | E9: Up Rebate | F9: =UR($C$4,$C$6,$C$7,$C$8,$C$9,$C$10) -> 6.975165579e-223
B10: Barrier | C10: 45 | E10: Down Rebate | F10: =DR($C$4,$C$6,$C$7,$C$8,$C$9,$C$10) -> 1
E11: Deferred Up Rebate | F11: =URDeferred($C$4,$C$6,$C$7,$C$8,$C$9,$C$10) -> 3.55538741e-223
E12: Deferred Down Rebate | F12: =DRDeferred($C$4,$C$6,$C$7,$C$8,$C$9,$C$10) -> 0.9231163464

Sheet Rainbow
B3: Inputs | E3: Rainbow Option
B4: Asset 1 | F4: Call | G4: Put
B5: Price | C5: 100 | E5: Price | F5: =rainbowcall(C5,C6, C7,C9,C10,C11,C14,C13,C15,C16) -> 122.4352851 | G5: =rainbowput(C5,C6, C7,C9,C10,C11,C14,C13,C15,C16) -> 88.28928225
B6: Volatility | C6: 0.25
B7: Dividend Yield | C7: 0
B8: Asset 2
B9: Price | C9: 100
B10: Volatility | C10: 0.25
B11: Dividend Yield | C11: 0
B12: Other
B13: Cash Strike | C13: 120
B14: Correlation | C14: 0.5
B15: Risk-free rate | C15: 0.05
B16: Time to Expiration (years) | C16: 1

Sheet Exchange
F2: Exchange Option
B3: Inputs | F3: Black-Scholes
B4: Underlying Asset | F4: Call | G4: Put
B5: Price | C5: 40 | E5: Price | F5: =bscallexchange($C$5,$C$6,$C$7,$C$9,$C$10,$C$11,$C$13,$C$14) -> 2.391411524 | G5: =bsputexchange($C$5,$C$6,$C$7,$C$9,$C$10,$C$11,$C$13,$C$14) -> 2.391411524
B6: Volatility | C6: 0.3
B7: Dividend Yield | C7: 0 | F7: Binomial
B8: Strike Asset | F8: Call | G8: Put
B9: Price | C9: 40 | E9: Price | F9: =binomcallexchange($C$5,$C$6,$C$7,$C$9,$C$10,$C$11,$C$13,$C$14,$C$16,$C$15) -> 2.361717259 | G9: =binomputexchange($C$5,$C$6,$C$7,$C$9,$C$10,$C$11,$C$13,$C$14,$C$16,$C$15) -> 2.361717259
B10: Volatility | C10: 0
B11: Dividend Yield | C11: 0
B12: Other
B13: Correlation | C13: 0
B14: Time to Expiration (years) | C14: 0.25
B15: # Binomial Steps | C15: 20
B16: Type (0=Eur, 1=Amer) | C16: 1

Sheet parameters (hidden)
A1: description for drop-down list | B1: sheet names | C1: SelectedSheet | D1: 5
A2: Asian Options | B2: Asian
A3: Barrier Options | B3: Barriers
A4: Binary Options | B4: Binaries
A5: Black Pricing Formula | B5: Black Formula | D5: Currently arrays are defined to 11 entries.
A6: Black-Scholes and Binomial | B6: Black-Scholes+Binomial
A7: CEV Pricing | B7: CEV
A8: Compound Options | B8: Compound
A9: Exchange Options | B9: Exchange
A10: Fixed Dividend Pricing | B10: Fixed Dividends
A11: Zero Coupon Bonds | B11: Interest Rate
A12: Merton Jump | B12: Merton Jump
A13: Perpetual Options | B13: Perpetual
A14: Power Options | B14: Power | D14: The array "sheetlistarray" contains names of spreadsheets
A15: Rainbow Options | B15: Rainbow | D15: The array "sheetlistdescription" contains descriptions for drop-down boxes
D16: The macro "gotosheet" selects an entry from sheetlistarray based on value returned from sheetlistdescription
D18: This sheet will ultimately be hidden, along with revisions sheet
D20: If adding sheets to drop-down lists, be sure to expand sheetlistarray and sheetlistdescription

Sheet Compound
B2: Inputs | E2: Compound Option Prices
B3: Stock Price | C3: 40 | E3: Call on Call | F3: =CallOnCall($C$3,$C$4,$C$5,$C$6,$C$7,$C$8,$C$9,$C$10) -> 3.417031846
B4: Exercise Price to buy asset | C4: 41 | E4: Put on Call | F4: =PutOnCall($C$3,$C$4,$C$5,$C$6,$C$7,$C$8,$C$9,$C$10) -> 0.3209767917
B5: Exercise Price to buy option | C5: 1.75 | E5: Call on Put | F5: =CallOnPut($C$3,$C$4,$C$5,$C$6,$C$7,$C$8,$C$9,$C$10) -> 2.083901146
B6: Volatility | C6: 0.3 | E6: Put on Put | F6: =PutOnPut($C$3,$C$4,$C$5,$C$6,$C$7,$C$8,$C$9,$C$10) -> 0.3755002145
B7: Risk-free interest rate | C7: 0.08 | E7: Critical S for compound call | F7: =BSCallImpS($C$3,$C$4,$C$6,$C$7,$C$9-$C$8,$C$10,$C$5) -> 37.36071189
B8: Expiration for Option on Option (years) | C8: 0.38 | E8: Critical S for compound put | F8: =BSPutImpS($C$3,$C$4,$C$6,$C$7,$C$9-$C$8,$C$10,$C$5) -> 42.76257007
B9: Expiration for Underlying Option (years) | C9: 0.75
B10: Dividend Yield | C10: 0

Sheet Merton Jump
B2: Inputs | G2: Premiums
B3: Stock Price | C3: 101 | G3: Call | H3: Put
B4: Strike Price | C4: 100 | F4: Black-Scholes (no-jump) | G4: =BSCall($C$3,$C$4,$C$5,$C$6,$C$7,$C$8) -> 16.37889895 | H4: =BSPut($C$3,$C$4,$C$5,$C$6,$C$7,$C$8) -> 7.690533584
B5: Volatility (diffusion) | C5: 0.3 | F5: Jump | G5: =MertonJump(C3,C4,C5,C6,C7,C8,C9,C10,C11) -> 16.44685685 | H5: 7.75849149
B6: Risk-free Rate | C6: 0.08 | F6: Implied Volatility from jump price | G6: =BSCallImpVol($C$3,$C$4,$C$5,$C$6,$C$7,$C$8,G5) -> 0.3018657708 | H6: =BSPutImpVol($C$3,$C$4,$C$5,$C$6,$C$7,$C$8,H5) -> 0.3018657708
B7: Time to Expiration | C7: 1
B8: Dividend Yield | C8: 0
B9: Jump frequency (%/year) | C9: 0.02
B10: Expected ln(jump) | C10: -0.15
B11: Volatility of ln(jump) | C11: 0.2

Sheet CEV
B2: Inputs | E2: Call | F2: Put
B3: Stock Price | C3: 40 | D3: Black-Scholes Price | E3: =BSCall($C$3,$C$4,$C$12,$C$6,$C$7,$C$8) -> 9.191756243 | F3: =BSPut($C$3,$C$4,$C$12,$C$6,$C$7,$C$8) -> 1.500828367
B4: Exercise Price | C4: 35 | D4: CEV Price | E4: =cevcall($C$3,$C$4,$C$5,$C$6,$C$7,$C$8,$C$9) -> 9.306984608 | F4: =cevput($C$3,$C$4,$C$5,$C$6,$C$7,$C$8,$C$9) -> 1.616056732
B5: Volatility Parameter | C5: 1.897367 | D5: Implied Volatility for CEV Price | E5: =BSCallImpVol($C$3,$C$4,0.1,$C$6,$C$7,$C$8,$E4) -> 0.3103834715 | F5: =BSPutImpVol($C$3,$C$4,0.1,$C$6,$C$7,$C$8,$F4) -> 0.3103834715
B6: Risk-free interest rate | C6: 0.08
B7: Time to Expiration (years) | C7: 1
B8: Dividend Yield | C8: 0
B9: Beta | C9: 1
B12: Observed Volatility Implied by CEV Parameters | C12: =C5*C3^((C9-2)/2) -> 0.3000000639

Sheet Fixed Dividends
B2: Inputs | E2: Black-Scholes (European)
B3: Stock Price | C3: 100 | F3: Call | G3: Put
B4: Exercise Price | C4: 100 | E4: Price | F4: =BSCall($C$18,$C$4,$C$5,$C$6,$C$7,0) -> 5.288592698 | G4: =BSPut($C$18,$C$4,$C$5,$C$6,$C$7,0) -> 13.22890318
B5: Volatility | C5: 0.2322 | E5: Delta | F5: =BSCallDelta($C$18,$C$4,$C$5,$C$6,$C$7,0)*C18/C3 -> 0.3622810296 | G5: =BSPutDelta($C$18,$C$4,$C$5,$C$6,$C$7,0)*(C18/C3) -> -0.5385145388
B6: Risk-free interest rate | C6: 0.02 | E6: Gamma | F6: =BSCallGamma($C$18,$C$4,$C$5,$C$6,$C$7,0)*(C18/C3)^2 -> 0.01500893109 | G6: =BSPutGamma($C$18,$C$4,$C$5,$C$6,$C$7,0)*(C18/C3)^2 -> 0.01500893109
B7: Time to Expiration (years) | C7: 1 | E7: Vega | F7: =BSCallVega($C$18,$C$4,$C$5,$C$6,$C$7,0) -> 0.3485073799 | G7: =BSPutVega($C$18,$C$4,$C$5,$C$6,$C$7,0) -> 0.3485073799
B8: Fixed dividend amount | C8: 5 | E8: Theta | F8: =BSCallTheta($C$18,$C$4,$C$5,$C$6,$C$7,0) -> -0.01278071476 | G8: =BSPutTheta($C$18,$C$4,$C$5,$C$6,$C$7,0) -> -0.007409763121
B9: Time until first dividend | C9: 0.15 | E9: Rho | F9: =BSCallRho($C$18,$C$4,$C$5,$C$6,$C$7,0) -> 0.3093951026 | G9: =BSPutRho($C$18,$C$4,$C$5,$C$6,$C$7,0) -> -0.6708035707
B10: Time Between Dividends | C10: 0.5 | E10: Elasticity | F10: =BSCallElast($C$18,$C$4,$C$5,$C$6,$C$7,0) -> 6.85023503 | G10: =BSPutElast($C$18,$C$4,$C$5,$C$6,$C$7,0) -> -4.070742158
B11: # Binomial steps | C11: 120
B12: Type (0=Eur, 1=Amer) | C12: 1 | E12: =CONCATENATE("Binomial ",IF(OpType=0,"European","American")) -> Binomial American
F13: Call | G13: Put
B14: Dividend Information | E14: Price | F14: =binomoptfixeddivcall(C3,C4,C5,C6,C7,C8,C10,C9,C12,C11) -> 5.991246565 | G14: =binomoptfixeddivput(C3,C4,C5,C6,C7,C8,C10,C9,C12,C11) -> 13.46876321
B15: Number of dividends | E15: Delta | F15: 0.4331430278 | G15: -0.5506943861
B16: Over Life of Option | C16: =IF(C9>=C7,0,1+TRUNC((C7-C9)/C10)) -> 2 | E16: Gamma | F16: 0.02128611574 | G16: 0.01539157468
B17: PV(Dividends) | C17: =IF(C16>0,EXP(-C9*C6)*C8*(1+(EXP(C6*C10)-1)^(-1)*(1-EXP(-C6*(C16-1)*C10))),0) -> 9.920443153 | E17: Theta | F17: -0.01777748135 | G17: -0.007619388138
B18: Prepaid forward price | C18: =C3-C17 -> 90.07955685

Sheet Black Formula
E2: Black Formula (European)
B3: Inputs | F3: Call | G3: Put | I3: Format string (do not delete)
B4: Futures Price | C4: 41 | E4: =black_text_greek(I4) -> Price | F4: =blackformula(C4,C5,C6,C7,C8,I4) -> 2.895481602 | G4: 1.915282929 | I4: ="CP+PP/CD+PD/CG+PG/CV+PV/CT+PT/CR+PR/CE+PE" -> CP+PP/CD+PD/CG+PG/CV+PV/CT+PT/CR+PR/CE+PE
B5: Exercise Price | C5: 40 | E5: Delta | F5: 0.5829109864 | G5: -0.3972876869
B6: Volatility | C6: 0.3 | E6: Gamma | F6: 0.06178474014 | G6: 0.06178474014
B7: Risk-free interest rate | C7: 0.08 | E7: Vega | F7: 0.07789511113 | G7: 0.07789511113
B8: Time to Expiration (years) | C8: 0.25 | E8: Theta | F8: -0.0121700497 | G8: -0.01238488776
B9: # Binomial steps | C9: 4 | E9: Rho | F9: -0.007238704006 | G9: -0.004788207322
B10: Type (0=Eur, 1=Amer) | C10: 0 | E10: Elasticity | F10: 8.254015644 | G10: -8.504641751
B12: Implied Volatility | E12: =CONCATENATE("Binomial ",IF(OpType=0,"European","American")) -> Binomial American
B13: Observed Call Price | C13: 2.4 | F13: Call | G13: Put
B14: Call Implied Volatility | C14: =BSCallImpVol(C4,C5,C6,C7,C8,C7,C13) -> 0.2361935357 | E14: Price | F14: =BinomCall(C4,C5,C6,C7,C8,C7,C10,C9) -> 2.904294243 | G14: =BinomPut(C4,C5,C6,C7,C8,C7,C10,C9) -> 1.92409557
B15: Observed Put Price | C15: 3 | E15: Delta | F15: 0.5795049435 | G15: -0.4006937298
B16: Put Implied Volatility | C16: =BSPutImpVol(C4,C5,C6,C7,C8,C7,C15) -> 0.4388662345 | E16: Gamma | F16: 0.07240191118 | G16: 0.07240191118
E17: Theta | F17: -0.01444758039 | G17: -0.01466349623

Sheet Black-Scholes+Binomial
E2: Black-Scholes (European)
B3: Inputs | F3: Call | G3: Put
B4: Stock Price | C4: 100 | E4: Price | F4: =BSCall(stock,exer,vol,rint,expire,divd) -> 24.41025101 | G4: =BSPut(stock,exer,vol,rint,expire,divd) -> 17.67666073
B5: Exercise Price | C5: 120 | E5: Delta | F5: =BSCallDelta(stock,exer,vol,rint,expire,divd) -> 0.4398612934 | G5: =BSPutDelta(stock,exer,vol,rint,expire,divd) -> -0.1666693663
B6: Volatility | C6: 0.3 | E6: Gamma | F6: =BSCallGamma(stock,exer,vol,rint,expire,divd) -> 0.002132498171 | G6: =BSPutGamma(stock,exer,vol,rint,expire,divd) -> 0.002132498171
B7: Risk-free interest rate | C7: 0.08 | E7: Vega | F7: =BSCallVega(stock,exer,vol,rint,expire,divd) -> 0.6397494513 | G7: =BSPutVega(stock,exer,vol,rint,expire,divd) -> 0.6397494513
B8: Time to Expiration (years) | C8: 10 | E8: Theta | F8: =BSCallTheta(stock,exer,vol,rint,expire,divd) -> -0.0008942136346 | G8: =BSPutTheta(stock,exer,vol,rint,expire,divd) -> 0.002615114467
B9: Dividend Yield | C9: 0.05 | E9: Rho | F9: =BSCallRho(stock,exer,vol,rint,expire,divd) -> 1.957587834 | G9: =BSPutRho(stock,exer,vol,rint,expire,divd) -> -3.434359736
B10: # Binomial steps | C10: 10 | E10: Psi | F10: =BSCallPsi(stock,exer,vol,rint,expire,divd) -> -4.398612934 | G10: =BSputPsi(stock,exer,vol,rint,expire,divd) -> 1.666693663
B11: Type (0=Eur, 1=Amer) | C11: 1 | E11: Elasticity | F11: =BSCallElast(stock,exer,vol,rint,expire,divd) -> 1.801953177 | G11: =BSPutElast(stock,exer,vol,rint,expire,divd) -> -0.9428781195
B13: Implied Volatility | E13: =CONCATENATE("Binomial ",IF(OpType=0,"European","American")) -> Binomial American
B14: Observed Call Price | C14: 5 | F14: Call | G14: Put
B15: Call Implied Volatility | C15: =BSCallImpVol(stock,exer,vol,rint,expire,divd,C14) ->  | E15: Price | F15: =BinomCall(stock,exer,vol,rint,expire,divd,OpType,n) -> 27.40144269 | G15: =BinomPut(stock,exer,vol,rint,expire,divd,OpType,n) -> 30.37511366
B16: Observed Put Price | C16: 3 | E16: Delta | F16: 0.5162707013 | G16: -0.3831302863
B17: Put Implied Volatility | C17: =BSPutImpVol(stock,exer,vol,rint,expire,divd,C16) -> 0.07987299152 | E17: Gamma | F17: 0.003445829223 | G17: 0.007803529406
E18: Theta | F18: -0.002873957542 | G18: -0.001030153855

Sheet Output
A1: Time (yrs) | B1: 1 | C1: 2 | D1: 3 | E1: 4 | F1: 5 | G1: 6 | H1: 7 | I1: 8 | J1: 9 | K1: 10
A2: 100 | B2: 139.0968128 | C2: 193.4792334 | D2: 269.1234472 | E2: 374.3421377 | F2: 520.6979827 | G2: 724.2742985 | H2: 1007.442466 | I2: 1401.320361 | J2: 1949.19196 | K2: 2711.263892
A3: 27.40144269 | B3: 49.25016014 | C3: 86.81545023 | D3: 150.0347184 | E3: 254.3421377 | F3: 400.6979827 | G3: 604.2742985 | H3: 887.4424655 | I3: 1281.320361 | J3: 1829.19196 | K3: 2591.263892
B4: 76.33794943 | C4: 106.1836547 | D4: 147.6980794 | E4: 205.4433211 | F4: 285.7651118 | G4: 397.4901627 | H4: 552.8961478 | I4: 769.0609199 | J4: 1069.739228 | K4: 1487.973172
B5: 15.18838535 | C5: 28.56177351 | D5: 52.56863215 | E5: 94.51506208 | F5: 165.7651118 | G5: 277.4901627 | H5: 432.8961478 | I5: 649.0609199 | J5: 949.7392284 | K5: 1367.973172
C6: 58.27482524 | D6: 81.0584246 | E6: 112.7496852 | F6: 156.8312185 | G6: 218.1472265 | H6: 303.4358394 | I6: 422.0695817 | J6: 587.0853361 | K6: 816.6169913
C7: 7.483263962 | D7: 14.91815948 | E7: 29.11575474 | F7: 55.43524328 | G7: 102.5378459 | H7: 183.4358394 | I7: 302.0695817 | J7: 467.0853361 | K7: 696.6169913
D8: 44.48580662 | E8: 61.87833918 | F8: 86.07079764 | G8: 119.7217363 | H8: 166.5291195 | I8: 231.6366977 | J8: 322.1992639 | K8: 448.168907
D9: 3.060338715 | E9: 6.563271022 | F9: 13.83922278 | G9: 28.57820237 | H9: 57.47385912 | I9: 111.6366977 | J9: 202.1992639 | K9: 328.168907
A10: American Call | E10: 33.95955256 | F10: 47.23665527 | G10: 65.70468198 | H10: 91.39311853 | I10: 127.124915 | J10: 176.8267051 | K10: 245.9603111
A11: Strike = 120 | E11: 0.9090139398 | F11: 2.124706593 | G11: 4.926834468 | H11: 11.31525961 | I11: 25.68204092 | J11: 57.4288034 | K11: 125.9603111
A12: Vol = 30.000%; r = 8.000% | F12: 25.92402606 | G12: 36.05949402 | H12: 50.15760691 | I12: 69.76763261 | J12: 97.04455335 | K12: 134.9858808
A13: Exp = 10 years; Div = 5.000% | F13: 0.1402024615 | G13: 0.3568954123 | H13: 0.9085028461 | I13: 2.312659095 | J13: 5.887039446 | K13: 14.98588076
A14: u = 1.3910; d = 0.7634 | G14: 19.78986991 | H14: 27.52707831 | I14: 38.2892886 | J14: 53.2591801 | K14: 74.08182207
A15: Risk-neutral prob of up = 0.4256 | G15: 0 | H15: 0 | I15: 0 | J15: 0 | K15: 0
A16: Forward tree | H16: 15.10718088 | I16: 21.01360712 | J16: 29.22925777 | K16: 40.65696597
H17: 0 | I17: 0 | J17: 0 | K17: 0
I18: 11.5325121 | J18: 16.04135678 | K18: 22.31301601
I19: 0 | J19: 0 | K19: 0
J20: 8.803683258 | K20: 12.24564283
J21: 0 | K21: 0
K22: 6.720551274
K23: 0

Sheet To-Dos (hidden)
A1: Done | B1: Need to add Psi to the greeks output.
A2: Done | B2: Need to add a field to compute options on futures. This will make rho correct. (should we do this, or add a function??)
A3: Done | B3: Pricing for fixed dividends
A4: Done | B4: Add Black formula spreadsheet
A5: Done | B5: Add CEV calculation
A6: Done | B6: Add Merton Jump calculation
B10: Second edition sheets (first printing) based on options6_05.xls
B12: Still To Do as of version 6_02
B14: Need to add a field to easily permit CRR option output.
B15: Look into adding simulation capability (for example, specify a function to be simulated)
B16: Add functions for American implied volatility (with fixed dividends?).
B17: Black Pricing formula for fixed income.
B18: Add bond equivalent yields to Black calculation

Sheet Revisions (hidden)
A1: 1999-06-01 | B1: Fixed at least some of the problems with barrier options
A2: 1999-06-01 | B2: Introduced "binomcrr" function to price as in Cox, Ross, Rubinstein. Regular binom uses forward tree.
A3: 2000-01-01 | B3: Cleaned up barrier calculations, formulas now conform to my presentation.
A4: 2000-01-01 | B4: Cleaned up Asian options, now uses exclusively formulas I've derived
A5: 2000-02-01 | B5: Added deferred rebate formulas (4l)
A6: 2000-02-01 | B6: Fixed binomial greeks for cases where u*d <> 1 (4l)
A7: 2000-06-01 | B7: Added "TreeType" public constant when graphing binomial trees (4l)
A8: 2000-08-01 | B8: Added horiz output orientation to binomial and perpetual array functions (4l)
A9: 2000-10-01 | B9: Added monte carlo calculation of arithmetic asian options (4m)
A10: 2000-10-01 | B10: Fixed problem with BSCallImpS and BSPutImpS where small deltas would cause negative stock prices in iteration.
A11: 2001-05-01 | B11: Fixed bscallimpvol problem with small starting vols. Made bsputimpvol a function of bscallimpvol.
A12: 2001-10-20 | B12: Version N
A13: 2001-10-20 | B13: Improved input descriptions, formatted percents as such
A14: 2001-10-21 | B14: Navigation drop-downs
A15: 2001-11-07 | B15: Fixed perpetual formula when in exercise region (02)
A16: 2001-12-15 | B16: version O
A17: 2001-12-15 | B17: Rainbow options
A18: 2001-12-27 | B18: CIR and Vasicek functions
A19: 2002-04-20 | B19: Version P
A20: 2002-04-21 | B20: Changed def'n of rho to match formula in chapter 12
A21: 2002-05-11 | B21: Fixed parameter order for rainbow options
A22: 2002-05-11 | B22: Set default print areas to avoid needless 2nd page
A23: 2002-05-11 | B23: Version Q
A24: 2002-05-11 | B24: Added control variate pricing of asian options
A25: 2002-05-11 | B25: Removed bermudan example
A26: 2002-05-11 | B26: Added protection to all sheets (only formula and text cells)
A27: 2002-05-11 | B27: Shipped optall.xls
A28: 2002-06-12 | B28: version 5
A29: 2002-06-12 | B29: Changed overflow check in m_bs from sig^2*t to sig*sqr(t)
A30: 2002-06-21 | B30: Fixed CIR gamma
A31: Revision A
A32: 2007-02-27 | B32: Fixed error in CEV function (cevcall=s^exp(-a*t))
A33: Revision B
A34: 2007-12-19 | B34: Fixed error in CIR function (sign on risk premium in solution)
A35: Revision C
A36: 2008-04-15 | B36: Fixed error in Vasicek function when a=0 (sign of first term in exponent should be negative).
A38: OPTALL3
A39: 2013-11-27 | B39: Fixed error in perpetual options (needless evaluatoin of option price would for extreme parameter values cause numerical overflow
B40: Fixed error in binomial, comparing rhat to up and down, rather than ahat

Sheet Sheet1
